Workbook

Sheet Select Points
A1: Derivative of the Logarithmic Function
I2: =C11^H2 -> 1
B3: This graphing utility lets you find the formula
B4: for the derivative of the natural log function
D5: y = ln (x)
B6: using data analysis/curve fitting methods.
A8: Enter the x-values for four points on the log curve
B9: Each x-value must be between 0.5 and 5.
C11: =D11/100+0.5 -> 0.79 | D11: 29
C13: =D13/100+0.5 -> 2.08 | D13: 158 | I13: The graph of the natural logarithm function
J14: with four points and tangent lines drawn
C15: =D15/100+0.5 -> 1.23 | D15: 73
D16: 3
C17: =D17/100+0.5 -> 3.07 | D17: 257
A21: Click each item below for suggestions and investigations
A22: Item 1
A23: Item 2
A24: Item 3
A28: To access/download all the DIGMath Apps for Calculus | I28: The graph of the four slope values
A29: Click this link: | C29: DIGMath for Calculus | J29: and the associated power function.
A31: Created by: Sheldon P. Gordon
A32: Farmingdale State College
A33: Development of this module was supported by the
A34: NSF's Division of Undergraduate Education
A35: under grants DUE-0310123 and DUE-0442160.

Sheet Random Points
A1: Derivative of the Logarithmic Function
B3: This graphing utility lets you find the formula
B4: for the derivative of the natural log function
D5: y = ln (x)
B6: using data analysis/curve fitting methods.
B9: The program now generates 20 random points
C10: on the curve y = ln x,
A11: calculates the slope of the tangent line at each point,
B12: and plots those 20 slopes in the chart.
B14: It also calculates the power regression function
C15: that fits these 20 points.
A16: The resulting power function equation is also shown.
D20: TRUE
A23: To access/download all the DIGMath Apps for Calculus
A24: Click this link: | C24: DIGMath for Calculus
A26: Created by: Sheldon P. Gordon
A27: Farmingdale State College
A28: Development of this module was supported by the
A29: NSF's Division of Undergraduate Education
A30: under grants DUE-0310123 and DUE-0442160.

Sheet Sheet2
A1: x | B1: ln x | G1: random x | H1: log values | I1: ln(x+.0001) | J1: slope
A2: ='Select Points'!C11 -> 0.79 | B2: =LN(A2) -> -0.2357223335 | C2: =C12 -> 1.265742676
A3: ='Select Points'!C13 -> 2.08 | B3: =LN(A3) -> 0.7323678937 | C3: =C15 -> 0.4807576742 | G3: =0.5+4.5*RAND() -> 1.99440391 | H3: =LN(G3) -> 0.6903452137 | I3: =LN(G3+0.0001) -> 0.6903953527 | J3: =(I3-H3)/0.0001 -> 0.5013903782
A4: ='Select Points'!C15 -> 1.23 | B4: =LN(A4) -> 0.2070141694 | C4: =C18 -> 0.8129750828 | G4: 2.496789291 | H4: 0.915005623 | I4: 0.9150456736 | J4: 0.4005063536
A5: ='Select Points'!C17 -> 3.07 | B5: =LN(A5) -> 1.121677562 | C5: =C21 -> 0.325727594 | G5: 3.755000739 | H5: 1.323088482 | I5: 1.323115113 | J5: 0.2663079861
G6: 3.283574617 | H6: 1.188932651 | I6: 1.188963106 | J6: 0.3045415102
A7: 0.5 | B7: =LN(A7) -> -0.6931471806 | G7: 3.093999017 | H7: 1.129464434 | I7: 1.129496754 | J7: 0.3232010853
A8: 5 | B8: =LN(A8) -> 1.609437912 | G8: 0.7758151057 | H8: -0.2538410531 | I8: -0.2537121647 | J8: 1.288883846
G9: 4.22610781 | H9: 1.44128143 | I9: 1.441305092 | J9: 0.2366215473
C10: slopes | G10: 1.381813921 | H10: 0.3233970714 | I10: 0.3234694374 | J10: 0.7236602573
A11: =A2 -> 0.79 | B11: =LN(A11) -> -0.2357223335 | D11: =A11 -> 0.79 | E11: =B11 -> -0.2357223335 | G11: 3.369178867 | H11: 1.214669055 | I11: 1.214698735 | J11: 0.2968038205
A12: =A11+0.0001 -> 0.7901 | B12: =LN(A12) -> -0.2355957593 | C12: =(B12-B11)/0.0001 -> 1.265742676 | D12: =A12 -> 0.7901 | E12: =B12+C12*(A12-A11) -> -0.235469185 | G12: 1.106411616 | H12: 0.1011220007 | I12: 0.1012123789 | J12: 0.9037819169
A13: =A11+0.8 -> 1.59 | B13: =LN(A13) -> 0.4637340162 | D13: 1.59 | E13: =B12+C12*(A13-A11) -> 0.7769983817 | G13: 4.396468509 | H13: 1.480801607 | I13: 1.480824352 | J13: 0.2274526988
A14: =A3 -> 2.08 | B14: 0.7323678937 | D14: 2.08 | E14: =B15 -> 0.7324159695 | G14: 1.297327386 | H14: 0.2603062915 | I14: 0.2603833701 | J14: 0.7707857491
A15: =A14+0.0001 -> 2.0801 | B15: 0.7324159695 | C15: =(B15-B14)/0.0001 -> 0.4807576742 | D15: 2.0801 | E15: =B15+C15*(A15-A14) -> 0.7324640452 | G15: 1.313935478 | H15: 0.2730268155 | I15: 0.2731029198 | J15: 0.7610434188
A16: =A14+0.8 -> 2.88 | D16: 2.88 | E16: =B15+C15*(A16-A14) -> 1.117022109 | G16: 2.437671167 | H16: 0.8910431438 | I16: 0.8910841657 | J16: 0.410219189
A17: =A4 -> 1.23 | B17: 0.2070141694 | D17: 1.23 | E17: =B18 -> 0.2070954669 | G17: 3.180386343 | H17: 1.157002681 | I17: 1.157034123 | J17: 0.3144222654
A18: =A17+0.0001 -> 1.2301 | B18: 0.2070954669 | C18: =(B18-B17)/0.0001 -> 0.8129750828 | D18: 1.2301 | E18: =B18+C18*(A18-A17) -> 0.2071767644 | G18: 0.7145876177 | H18: -0.3360496611 | I18: -0.3359097301 | J18: 1.399310611
A19: =A17+0.8 -> 2.03 | D19: 2.03 | E19: =B18+C18*(A19-A17) -> 0.8574755331 | G19: 1.248825778 | H19: 0.2222037321 | I19: 0.2222838041 | J19: 0.8007201503
A20: =A5 -> 3.07 | B20: 1.121677562 | D20: 3.07 | E20: =B21 -> 1.121710134 | G20: 4.876171656 | H20: 1.584360415 | I20: 1.584380923 | J20: 0.2050768137
A21: =A20+0.0001 -> 3.0701 | B21: 1.121710134 | C21: =(B21-B20)/0.0001 -> 0.325727594 | D21: 3.0701 | E21: =B20+C20*(A21-A19) -> 1.121677562 | G21: 4.816465008 | H21: 1.572040258 | I21: 1.57206102 | J21: 0.2076189939
A22: =A20+0.8 -> 3.87 | D22: 3.87 | E22: =B21+C21*(A22-A20) -> 1.38229221 | G22: 2.580266883 | H22: 0.9478928368 | I22: 0.9479315917 | J22: 0.3875492993
G23: 2.71828 | H23: 0.9999993273 | I23: 1.000036115 | J23: 0.367872922
